bitfinex/quotes_SOLUSD_20260306
["timestamp","ask_amount","ask_price","bid_price","bid_amount"]
[1772813906390,0.14216157,84.479,84.439,0.67928377]
[1772813906815,11.83586028,84.489,84.439,0.67928377]
[1772813907116,0.14216157,84.497,84.439,0.67928377]
[1772813907495,0.14216157,84.497,84.436,0.28432314]
[1772813907496,0.14216157,84.497,84.441,0.67928377]
[1772813909090,0.42648471,84.507,84.441,0.67928377]
[1772813909413,0.14216157,84.499,84.443,0.67928377]
[1772813910402,0.14216157,84.499,84.444,0.67928377]
[1772813912415,0.14216157,84.499,84.443,0.28432314]
[1772813912416,0.42648471,84.517,84.447,0.67928377]
[1772813912619,0.28432314,84.508,84.447,0.67928377]
[1772813913198,0.14216157,84.509,84.447,0.67928377]
[1772813913723,11.00059018,84.49,84.447,0.67928377]
[1772813913904,0.14216157,84.489,84.441,11.84250795]
[1772813914218,0.14216157,84.489,84.441,12.52179172]
[1772813914520,41.56767257,84.489,84.443,12.52159159]
[1772813914709,41.56767257,84.489,84.444,0.67928377]
[1772813916605,0.14216157,84.496,84.446,0.67928377]
[1772813916821,0.14216157,84.496,84.447,0.67928377]
[1772813917017,11.83473969,84.497,84.447,0.67928377]
[1772813917518,0.14216157,84.496,84.447,0.67928377]
[1772813918129,11.83179914,84.518,84.449,0.96360691]
[1772813918315,11.83179914,84.518,84.452,0.67928377]
[1772813918502,59.13684861,84.55,84.461,3.69383402]
[1772813918503,11.82788068,84.546,84.461,3.69383402]
[1772813918702,11.82788068,84.546,84.465,0.67928377]
[1772813918949,4.82477569,84.539,84.465,0.67928377]
[1772813919117,0.42648471,84.538,84.465,0.67928377]
[1772813919510,0.14216157,84.538,84.465,0.67928377]
[1772813919710,0.14216157,84.529,84.465,0.67928377]
[1772813921531,41.40198965,84.537,84.47,0.67928377]
[1772813921712,0.14216157,84.536,84.47,0.67928377]
[1772813922031,0.14216157,84.536,84.476,0.67928377]
[1772813922705,0.14216157,84.529,84.476,0.67928377]
[1772813924325,41.54806959,84.529,84.478,0.67928377]
[1772813925010,0.14216157,84.519,84.478,0.67928377]
[1772813926453,41.5529686,84.519,84.47,0.67928377]
[1772813926627,0.14216157,84.509,84.469,11.83859095]
[1772813926932,0.14216157,84.509,84.47,0.67928377]
[1772813928239,0.14216157,84.509,84.464,29.59823617]
[1772813928240,41.56277008,84.499,84.451,0.67928377]
[1772813928414,41.42060851,84.499,84.451,0.67928377]
[1772813928611,0.14216157,84.498,84.451,0.67928377]
[1772813929317,0.14216157,84.498,84.417,47.3834374]
[1772813929318,0.14216157,84.489,84.442,0.67928377]
[1772813930237,0.14216157,84.489,84.444,0.67928377]
[1772813931734,0.14216157,84.489,84.403,0.14216157]
[1772813931735,4.96693726,84.479,84.435,0.67928377]
[1772813931940,0.14216157,84.479,84.435,0.67928377]
[1772813932419,0.14216157,84.479,84.437,0.67928377]
[1772813933515,0.14216157,84.487,84.437,0.67928377]
[1772813934510,0.14216157,84.487,84.44,0.67928377]
[1772813935318,41.41619727,84.508,84.44,0.67928377]
[1772813935713,0.14216157,84.507,84.44,0.67928377]
[1772813936029,0.14216157,84.507,84.443,0.67928377]
[1772813936719,0.14216157,84.507,84.449,0.67928377]
[1772813937119,11.83319922,84.508,84.449,0.67928377]
[1772813937319,0.14216157,84.507,84.449,0.67928377]
[1772813938843,0.14216157,84.507,84.452,0.67928377]
[1772813939742,0.14216157,84.519,84.452,0.67928377]
[1772813941041,0.14216157,84.519,84.453,41.44316957]
[1772813941225,0.14216157,84.519,84.455,0.67928377]
[1772813941426,0.14216157,84.519,84.458,0.67928377]
[1772813941827,0.14216157,84.522,84.458,0.67928377]
[1772813942436,0.42648471,84.522,84.458,0.67928377]
[1772813942942,0.14216157,84.519,84.458,0.67928377]
[1772813943142,0.14216157,84.519,84.457,0.28432314]
[1772813943143,41.5529686,84.519,84.46,0.67928377]
[1772813944732,11.97382072,84.519,84.46,0.67928377]
[1772813945042,11.82788068,84.546,84.464,0.67928377]
[1772813945246,11.82788068,84.546,84.467,0.67928377]
[1772813945621,11.82788068,84.546,84.471,0.67928377]
[1772813946422,0.14216157,84.545,84.471,0.67928377]
[1772813947444,0.14216157,84.529,84.477,0.67928377]
[1772813947644,4.39606347,84.51,84.437,0.67928377]
[1772813947851,0.14216157,84.509,84.438,0.67928377]
[1772813948047,0.14216157,84.509,84.442,0.67928377]
[1772813949756,41.5529686,84.519,84.447,0.67928377]
[1772813949929,11.97382072,84.519,84.449,0.67928377]
[1772813950129,11.97382072,84.519,84.451,0.67928377]
[1772813950455,41.5529686,84.519,84.451,0.67928377]
[1772813951838,41.5529686,84.519,84.443,148.02884784]
[1772813951839,11.82746099,84.549,84.458,0.67928377]
[1772813952043,29.57074172,84.544,84.462,0.67928377]
[1772813952236,29.57074172,84.544,84.47,0.14216157]
[1772813952552,0.14216157,84.543,84.471,0.67928377]
[1772813952927,11.82746099,84.549,84.479,0.67928377]
[1772813953131,11.82746099,84.549,84.481,0.67928377]
[1772813953956,0.14216157,84.548,84.486,0.67928377]
[1772813954132,0.14216157,84.548,84.487,0.67928377]
[1772813954536,41.38632358,84.569,84.489,0.67928377]
[1772813954746,41.38632358,84.569,84.491,0.67928377]
[1772813955246,0.14216157,84.568,84.491,0.67928377]
[1772813955454,11.82466388,84.569,84.494,0.67928377]
[1772813955631,11.82466388,84.569,84.493,0.28432314]
[1772813955632,41.38632358,84.569,84.502,0.67928377]
[1772813956032,0.14216157,84.568,84.507,0.67928377]
[1772813956246,0.14216157,84.568,84.508,0.67928377]
[1772813956447,0.1,84.57,84.51,0.67928377]
[1772813956653,0.1,84.57,84.512,0.67928377]
[1772813957949,0.1,84.57,84.518,0.67928377]
[1772813960159,0.1,84.57,84.52,0.67928377]
[1772813960343,0.14216157,84.559,84.519,11.83165915]
[1772813961144,0.14216157,84.559,84.513,0.67928377]
[1772813961345,0.1,84.57,84.513,0.96360691]
[1772813961540,0.1,84.57,84.516,0.67928377]
[1772813961868,0.1,84.57,84.517,0.67928377]
[1772813962359,0.1,84.57,84.512,100.57731376]
[1772813962360,0.1,84.57,84.523,0.67928377]
[1772813963071,0.1,84.57,84.527,0.67928377]
[1772813963993,0.1,84.59,84.529,0.67928377]
[1772813964160,11.92183898,84.59,84.531,0.67928377]
[1772813964469,0.1,84.59,84.536,0.67928377]
[1772813964665,0.1,84.59,84.539,0.67928377]
[1772813964968,0.1,84.59,84.541,0.67928377]
[1772813966363,1e-08,84.6,84.551,0.67928377]
[1772813966564,1e-08,84.6,84.552,0.67928377]
[1772813968766,1e-08,84.6,84.558,0.67928377]
[1772813970771,1e-08,84.6,84.56,0.67928377]
[1772813973266,1e-08,84.6,84.562,0.67928377]
[1772813973482,10.97687893,84.63,84.562,0.67928377]
[1772813973483,11.81488439,84.639,84.566,0.67928377]
[1772813973646,41.35209536,84.639,84.566,0.67928377]
[1772813973953,0.14216157,84.638,84.566,0.67928377]
[1772813974157,41.35209536,84.639,84.566,0.67928377]
[1772813974380,0.14216157,84.638,84.566,0.67928377]
[1772813975146,0.14216157,84.638,84.569,0.67928377]
[1772813976654,0.14216157,84.629,84.569,0.67928377]
[1772813977267,0.14216157,84.629,84.572,0.67928377]
[1772813977869,11.81488439,84.639,84.575,0.67928377]
[1772813978259,41.35209536,84.639,84.575,0.67928377]
[1772813978850,0.14216157,84.638,84.575,0.67928377]
[1772813979372,0.14216157,84.638,84.557,1.18263419]
[1772813979373,4.96693726,84.634,84.56,0.67928377]
[1772813979563,10.97687893,84.6,84.55,0.67928377]
[1772813979869,0.28432314,84.633,84.55,0.67928377]
[1772813979870,0.14216157,84.589,84.55,0.67928377]
[1772813980374,0.14216157,84.609,84.55,0.67928377]
[1772813980567,0.14216157,84.579,84.527,0.67928377]
[1772813980957,0.14216157,84.579,84.528,0.67928377]
[1772813981673,0.14216157,84.579,84.53,0.67928377]
[1772813982454,41.37653831,84.589,84.531,0.67928377]
[1772813982660,41.37653831,84.589,84.53,0.28432314]
[1772813982661,11.82186809,84.589,84.534,0.67928377]
[1772813983181,0.14216157,84.588,84.534,0.67928377]
[1772813983867,0.14216157,84.588,84.536,0.67928377]
[1772813985373,0.14216157,84.588,84.537,0.67928377]
[1772813985757,0.14216157,84.598,84.54,0.67928377]
[1772813986378,0.14216157,84.598,84.543,0.67928377]
[1772813986678,59.51399938,84.66,84.549,0.67928377]
[1772813986679,11.81809586,84.616,84.549,0.67928377]
[1772813986869,0.14216157,84.615,84.551,0.67928377]
[1772813987879,11.81348864,84.649,84.56,0.67928377]
[1772813988180,29.53511725,84.645,84.563,0.67928377]
[1772813988763,29.53511725,84.645,84.566,0.67928377]
[1772813988979,29.53511725,84.645,84.568,0.67928377]
[1772813989291,29.53511725,84.645,84.572,0.67928377]
[1772813989663,11.81348864,84.649,84.576,0.67928377]
[1772813989979,11.81348864,84.649,84.563,0.14216157]
[1772813989980,0.1,84.65,84.588,0.67928377]
[1772813990182,0.1,84.65,84.587,0.28432314]
[1772813990183,0.1,84.65,84.592,0.67928377]
[1772813990384,11.07687893,84.65,84.592,0.67928377]
[1772813990756,0.14216157,84.649,84.592,0.67928377]
[1772813991375,0.14216157,84.639,84.583,11.82270669]
[1772813991664,0.14216157,84.619,84.578,11.82340544]
[1772813991868,41.50403065,84.619,84.578,11.82340544]
[1772813992068,11.95983845,84.619,84.579,0.67928377]
[1772813992890,11.95983845,84.619,84.558,3.69383402]
[1772813992891,41.50403065,84.619,84.573,11.8240378]
[1772813993366,0.14216157,84.609,84.561,0.67928377]
[1772813993974,41.50891924,84.609,84.562,11.82564272]
[1772813994264,41.50891924,84.609,84.563,0.67928377]
[1772813994661,11.96123519,84.609,84.563,0.67928377]
[1772813994869,11.07687893,84.65,84.566,0.82144534]
[1772813995190,11.07687893,84.65,84.567,0.82144534]
[1772813995191,10.97687893,84.64,84.567,0.82144534]
[1772813995687,0.42648471,84.643,84.567,0.82144534]
[1772813995882,16.63826433,84.649,84.572,0.67928377]
[1772813995883,41.49425693,84.639,84.572,0.67928377]
[1772813996083,41.49425693,84.639,84.573,0.67928377]
[1772813997165,0.14216157,84.629,84.573,0.67928377]
[1772813998260,0.14216157,84.619,84.575,0.67928377]
[1772813998467,41.49914321,84.629,84.557,0.67928377]
[1772813998468,0.14216157,84.599,84.557,0.67928377]
[1772814000266,0.14216157,84.599,84.559,0.67928377]
[1772814000584,11.81848984,84.614,84.56,0.67928377]
[1772814000766,0.14216157,84.613,84.56,0.67928377]
[1772814000968,0.14216157,84.613,84.563,0.67928377]
[1772814001160,11.81848984,84.614,84.563,0.67928377]
[1772814001558,0.14216157,84.613,84.563,0.67928377]
[1772814001988,0.14216157,84.609,84.563,0.67928377]
[1772814002166,0.14216157,84.609,84.558,11.82620213]
[1772814002167,10.97687893,84.58,84.515,0.67928377]
[1772814002491,139.60526354,84.614,84.517,0.67928377]
[1772814002492,0.14216157,84.569,84.517,0.67928377]
[1772814002663,0.14216157,84.569,84.517,0.96360691]
[1772814002864,10.97687893,84.59,84.52,0.67928377]
[1772814003180,0.14216157,84.589,84.52,0.67928377]
[1772814003488,0.14216157,84.569,84.522,0.67928377]
[1772814004184,0.14216157,84.559,84.515,0.67928377]
[1772814004380,11.96822384,84.559,84.517,0.67928377]
[1772814004783,41.53337953,84.559,84.517,0.67928377]
[1772814005094,0.14216157,84.578,84.517,0.67928377]
[1772814005278,0.14216157,84.569,84.518,0.67928377]
[1772814005587,11.82326582,84.579,84.517,0.28432314]
[1772814005588,0.14216157,84.578,84.52,0.67928377]
[1772814006268,0.14216157,84.583,84.527,0.67928377]
[1772814006588,0.14216157,84.583,84.528,0.67928377]
[1772814007091,41.37164741,84.599,84.528,0.67928377]
[1772814007276,0.14216157,84.598,84.528,0.67928377]
[1772814008979,0.14216157,84.598,84.534,0.67928377]
[1772814009866,16.78321773,84.629,84.536,0.67928377]
[1772814010064,0.28432314,84.628,84.542,0.67928377]
[1772814010289,0.14216157,84.619,84.542,0.67928377]
[1772814010468,0.14216157,84.599,84.542,0.67928377]
[1772814010880,0.14216157,84.599,84.544,0.67928377]
[1772814012991,0.14216157,84.599,84.533,0.28432314]
[1772814012992,0.42648471,84.605,84.546,0.67928377]
[1772814013189,0.14216157,84.605,84.547,0.67928377]
[1772814013388,10.97687893,84.6,84.547,0.67928377]
[1772814013896,0.14216157,84.599,84.547,0.67928377]
[1772814014992,41.51380898,84.599,84.549,0.67928377]
[1772814015178,0.14216157,84.589,84.549,0.67928377]
[1772814017080,0.14216157,84.589,84.551,0.67928377]
[1772814017275,0.14216157,84.589,84.55,11.82732111]
[1772814017276,0.14216157,84.589,84.545,11.82799544]
[1772814017477,0.14216157,84.589,84.52,0.67928377]
[1772814017478,0.14216157,84.569,84.52,0.67928377]
[1772814019291,10.97687893,84.57,84.508,3.69383402]
[1772814019292,11.82458294,84.57,84.523,0.67928377]
[1772814019799,0.14216157,84.578,84.523,0.67928377]
[1772814021192,0.14216157,84.578,84.525,0.67928377]
[1772814022102,0.14216157,84.578,84.526,0.67928377]
[1772814022301,0.14216157,84.578,84.524,41.40835738]
[1772814022302,0.14216157,84.569,84.524,11.83095925]
[1772814022603,10.97687893,84.55,84.488,0.67928377]
[1772814022796,0.14216157,84.549,84.49,0.67928377]
[1772814022980,0.14216157,84.549,84.491,0.67928377]
[1772814023702,41.53827505,84.549,84.494,0.67928377]
[1772814024088,11.96962256,84.549,84.494,0.67928377]
[1772814024281,0.14216157,84.569,84.494,0.67928377]
[1772814024605,0.14216157,84.569,84.497,0.67928377]
[1772814025400,0.14216157,84.569,84.499,0.96360691]
[1772814025595,0.14216157,84.569,84.5,0.67928377]
[1772814025904,0.14216157,84.569,84.503,0.67928377]
[1772814026485,41.38338751,84.575,84.503,0.67928377]
[1772814026886,0.14216157,84.574,84.503,0.67928377]
[1772814027413,0.14216157,84.559,84.508,0.67928377]
[1772814028082,0.14216157,84.549,84.504,11.83375934]
[1772814028289,0.14216157,84.539,84.504,11.83375934]
[1772814028489,0.14216157,84.539,84.47,0.2]
[1772814028490,0.14216157,84.539,84.489,0.67928377]
[1772814028907,0.14216157,84.529,84.489,0.67928377]
[1772814029406,41.54806959,84.529,84.489,0.67928377]
[1772814029602,41.54806959,84.529,84.491,0.67928377]
[1772814030307,41.54806959,84.529,84.485,11.83639953]
[1772814030501,41.54806959,84.529,84.482,11.83684098]
[1772814031014,0.14216157,84.509,84.479,1.00699345]
[1772814031314,0.14216157,84.509,84.47,0.2]
[1772814031479,11.97522077,84.509,84.472,0.67928377]
[1772814032887,11.97522077,84.509,84.47,0.2]
[1772814032888,0.14216157,84.499,84.47,0.2]
[1772814033087,0.14216157,84.499,84.471,0.67928377]
[1772814033384,0.14216157,84.499,84.47,0.2]
[1772814034489,0.14216157,84.489,84.47,1e-08]
[1772814034791,41.4157072,84.509,84.471,0.67928377]
[1772814034992,0.14216157,84.508,84.471,0.67928377]
[1772814035197,0.14216157,84.506,84.47,1e-08]
[1772814035398,0.51651265,84.492,84.47,1e-08]
[1772814035590,0.51651265,84.488,84.47,1e-08]
[1772814035786,0.14216157,84.483,84.47,1e-08]
[1772814036805,11.97886244,84.483,84.47,1e-08]
[1772814038697,0.51533061,84.482,84.47,1e-08]
[1772814039106,0.51533061,84.479,84.47,1e-08]
[1772814039411,0.14216157,84.48,84.46,1e-08]
[1772814039412,0.514957,84.478,84.46,1e-08]
[1772814040502,0.14216157,84.479,84.46,1e-08]
[1772814040991,0.51457939,84.476,84.46,1e-08]
[1772814041191,0.14216157,84.475,84.46,1e-08]
[1772814041623,0.51420516,84.493,84.46,1e-08]
[1772814041792,0.51420516,84.493,84.461,0.54852949]
[1772814041793,11.83544004,84.492,84.461,0.54852949]
[1772814041993,0.51420516,84.491,84.461,0.54852949]
[1772814043408,41.93848156,84.49,84.461,0.54852949]
[1772814043609,0.14216157,84.488,84.46,1e-08]
[1772814043795,0.65562243,84.488,84.46,1e-08]
[1772814043998,0.51346086,84.485,84.46,1e-08]
[1772814044395,0.51309908,84.481,84.46,1e-08]
[1772814044606,0.51309908,84.475,84.46,1e-08]
[1772814045610,11.83796197,84.474,84.46,1e-08]
[1772814046217,0.51273271,84.503,84.444,0.28432314]
[1772814046424,4.82477569,84.527,84.444,0.28432314]
[1772814046425,0.54224278,84.526,84.447,0.42648471]
[1772814046715,11.83053935,84.527,84.447,1.61065939]
[1772814046905,11.82886856,84.539,84.447,1.61065939]
[1772814047091,0.14216157,84.538,84.447,1.61065939]
[1772814047614,11.9714414,84.536,84.451,3.69383402]
[1772814047817,41.54464098,84.536,84.452,1.61058929]
[1772814048193,41.40247941,84.536,84.456,0.14216157]
[1772814048398,41.40247941,84.536,84.464,0.14216157]
[1772814048622,0.14216157,84.535,84.475,0.54852949]
[1772814048921,0.54224278,84.535,84.475,0.54852949]
[1772814049494,0.54224278,84.553,84.485,0.54852949]
[1772814049720,0.54224278,84.547,84.488,0.54852949]
[1772814049922,0.54224278,84.545,84.488,0.54852949]
[1772814050425,0.14216157,84.551,84.49,0.54852949]
[1772814050815,0.14216157,84.549,84.49,0.54852949]
[1772814051619,0.54224278,84.546,84.49,0.54852949]
[1772814051809,0.54224278,84.546,84.474,47.35184568]
[1772814051810,0.54224278,84.544,84.496,0.54852949]
[1772814053911,0.54224278,84.542,84.499,0.54852949]
[1772814054825,0.54224278,84.54,84.499,0.54852949]
[1772814055002,0.54224278,84.536,84.499,0.54852949]
[1772814056406,11.82880488,84.54,84.501,0.58671556]
[1772814056610,0.57277874,84.539,84.501,0.58671556]
[1772814057132,11.8280814,84.545,84.501,0.58671556]
[1772814057636,0.14216157,84.551,84.501,0.58671556]
[1772814057809,0.71494031,84.551,84.501,0.58671556]
[1772814058827,11.82732111,84.55,84.502,41.419138]
[1772814059129,0.71494031,84.549,84.503,0.58671556]
[1772814059911,0.71494031,84.549,84.49,0.28432314]
[1772814059912,0.71494031,84.549,84.495,0.58671556]
[1772814060111,0.21494031,84.549,84.495,0.58671556]
[1772814060420,0.14216157,84.539,84.495,0.58671556]
[1772814060822,0.14216157,84.539,84.481,29.59237039]
[1772814060823,41.54317175,84.539,84.487,0.58671556]
[1772814061030,41.54317175,84.539,84.479,12.42393996]
[1772814061031,0.14216157,84.529,84.479,12.42393996]
[1772814061219,0.14216157,84.529,84.48,0.58671556]
[1772814062247,11.82886005,84.539,84.481,0.584311]
[1772814062448,11.82826773,84.544,84.485,0.584311]
[1772814063152,11.82826773,84.544,84.482,3.69383402]
[1772814063153,0.56387669,84.543,84.487,0.584311]
[1772814063353,11.82826773,84.544,84.488,0.584311]
[1772814063657,11.82769535,84.548,84.488,0.584311]
[1772814063836,0.56387669,84.552,84.492,0.584311]
[1772814064038,0.14216157,84.561,84.494,0.584311]
[1772814064242,0.56429392,84.559,84.494,0.584311]
[1772814065436,0.70725894,84.557,84.496,0.86863414]
[1772814065640,0.56509737,84.539,84.497,0.584311]
[1772814065843,0.56509737,84.535,84.497,0.584311]
[1772814067838,0.56589776,84.552,84.5,0.584311]
[1772814068044,0.14216157,84.547,84.5,0.584311]
[1772814068755,11.82662172,84.555,84.5,0.584311]
[1772814069147,11.82662172,84.555,84.503,0.584311]
[1772814069348,11.82550287,84.563,84.505,0.584311]
[1772814069660,11.82550287,84.563,84.501,3.69383402]
[1772814069661,11.00746355,84.61,84.525,0.584311]
[1772814069863,0.56667874,84.604,84.53,0.584311]
[1772814070165,0.56667874,84.595,84.53,0.584311]
[1772814070359,0.56667874,84.604,84.532,0.584311]
[1772814070661,0.14216157,84.603,84.534,0.584311]
[1772814070869,0.56705303,84.599,84.534,0.584311]
[1772814071746,0.56705303,84.599,84.53,0.28432314]
[1772814071747,0.56743182,84.595,84.537,0.584311]
[1772814072782,0.56743182,84.595,84.54,0.584311]
[1772814073846,0.5681788,84.589,84.542,0.584311]
[1772814074162,0.14216157,84.593,84.542,0.584311]
[1772814074163,0.14216157,84.586,84.542,0.584311]
[1772814074361,0.5681788,84.587,84.542,0.584311]
[1772814074362,0.5681788,84.585,84.542,0.584311]
[1772814074659,11.82116935,84.594,84.545,0.28432314]
[1772814074858,0.5685467,84.588,84.546,0.584311]
[1772814075160,0.5685467,84.588,84.541,41.40003074]
[1772814075161,0.59534706,84.584,84.541,41.40003074]
[1772814076469,0.59534706,84.58,84.531,145.60492836]
[1772814076761,0.14216157,84.581,84.531,145.60492836]
[1772814076762,0.14216157,84.578,84.531,41.40492836]
[1772814076958,0.14216157,84.578,84.532,0.584311]
[1772814077164,0.73750863,84.578,84.532,0.584311]
[1772814078061,0.73750863,84.578,84.531,41.98923936]
[1772814078266,0.73750863,84.578,84.532,0.584311]
[1772814078646,0.73750863,84.576,84.534,0.584311]
[1772814079876,0.14216157,84.576,84.534,0.584311]
[1772814080448,0.73750863,84.576,84.534,0.584311]
[1772814080975,0.59534706,84.574,84.536,0.584311]
[1772814081476,0.59534706,84.574,84.535,8.04e-06]
[1772814081677,0.59534706,84.569,84.513,41.41374699]
[1772814081879,0.59534706,84.565,84.514,0.28432314]
[1772814082069,0.59534706,84.565,84.517,0.28432314]
[1772814082249,0.59534706,84.556,84.513,11.83249914]
[1772814082449,0.59534706,84.549,84.513,11.83249914]
[1772814082954,0.59534706,84.549,84.503,29.58442895]
[1772814082955,0.73750863,84.543,84.482,41.42894343]
[1772814083358,0.73750863,84.543,84.487,0.584311]
[1772814083777,0.59534706,84.539,84.487,0.584311]
[1772814083959,30.0,84.541,84.487,0.584311]
[1772814083960,0.59534706,84.535,84.487,0.584311]
[1772814085086,0.59534706,84.532,84.489,0.584311]
[1772814085291,0.59534706,84.532,84.489,0.72647257]
[1772814085699,11.82969964,84.533,84.488,41.42600131]
[1772814085700,0.59534706,84.529,84.488,11.83600037]
[1772814085871,0.73750863,84.526,84.488,11.83600037]
[1772814086185,0.73750863,84.526,84.489,0.584311]
[1772814086887,0.73750863,84.526,84.481,11.83698109]
[1772814087085,0.59534706,84.517,84.481,11.83698109]
[1772814087392,0.59534706,84.515,84.481,11.83698109]
[1772814088982,0.59534706,84.509,84.47,11.83852255]
[1772814089296,0.59534706,84.507,84.47,11.83852255]
[1772814089473,0.59534706,84.505,84.47,11.83852255]
[1772814089668,0.59534706,84.499,84.455,11.84062518]
[1772814089875,0.14216157,84.498,84.455,11.84062518]
[1772814090076,0.59534706,84.495,84.455,11.84062518]
[1772814090285,0.59534706,84.495,84.456,0.584311]
[1772814090477,0.59534706,84.495,84.455,11.84062518]
[1772814090993,30.0,84.498,84.431,0.80663863]
[1772814090994,0.59534706,84.488,84.431,0.80663863]
[1772814091184,41.425511,84.489,84.434,0.584311]
[1772814091185,0.59534706,84.477,84.434,0.584311]
[1772814091392,0.73750863,84.476,84.434,0.584311]
[1772814092201,0.57415323,84.473,84.434,0.584311]
[1772814093078,0.57415323,84.471,84.435,11.84342985]
[1772814094197,0.57415323,84.47,84.435,11.84342985]
[1772814094500,0.57415323,84.468,84.429,11.84427091]
[1772814094699,0.57415323,84.464,84.425,0.59460457]
[1772814094897,0.57415323,84.464,84.39,1.38497452]
[1772814094898,0.57415323,84.447,84.4,0.59460457]
[1772814095081,0.57415323,84.443,84.401,11.84820085]
[1772814095279,0.57415323,84.441,84.401,11.84820085]
[1772814095477,0.14216157,84.442,84.39,0.2]
[1772814095478,0.7163148,84.429,84.39,0.2]
[1772814095800,0.57415323,84.415,84.39,0.2]
[1772814096182,0.57415323,84.415,84.391,11.84960481]
[1772814096381,0.57415323,84.415,84.39,0.2]
[1772814097198,0.57415323,84.413,84.39,0.2]
[1772814097411,30.57415323,84.419,84.391,41.47361684]
[1772814097580,27.17991173,84.412,84.392,0.59460457]
[1772814097781,0.57415323,84.437,84.393,0.59460457]
[1772814099083,11.84174689,84.447,84.393,0.59460457]
[1772814099291,0.57415323,84.446,84.396,0.59460457]
[1772814099491,11.84202735,84.445,84.396,0.59460457]
[1772814099696,0.57415323,84.444,84.396,0.59460457]
[1772814101106,11.84106566,84.452,84.396,0.59460457]
[1772814101303,0.57415323,84.465,84.4,0.14216157]
[1772814101484,0.57415323,84.465,84.405,0.59460457]
[1772814101804,0.57415323,84.465,84.408,0.59460457]
[1772814102187,0.57415323,84.465,84.407,0.28432314]
[1772814102819,0.57415323,84.465,84.408,0.59460457]
[1772814103411,0.7163148,84.463,84.41,0.59460457]
[1772814104622,0.7163148,84.461,84.412,0.59460457]
[1772814105281,0.7163148,84.461,84.411,41.46379025]
[1772814105481,0.57415323,84.458,84.411,41.46379025]
[1772814105686,0.57415323,84.454,84.411,41.46379025]
[1772814106406,0.57415323,84.454,84.412,0.59460457]
[1772814106828,0.57415323,84.454,84.414,0.59460457]
[1772814106993,0.57415323,84.454,84.415,0.59460457]
[1772814107502,9.44915778,84.48,84.415,0.59460457]
[1772814107689,0.57415323,84.478,84.415,0.59460457]
[1772814107890,0.57415323,84.474,84.418,0.59460457]
[1772814108110,41.41080703,84.519,84.424,0.59460457]
[1772814108410,41.41080703,84.519,84.442,0.14216157]
[1772814108615,0.14216157,84.518,84.445,0.59460457]
[1772814108789,0.14216157,84.518,84.45,0.73676614]
[1772814108995,0.14216157,84.518,84.451,0.59460457]
[1772814110014,0.14216157,84.516,84.451,0.59460457]
[1772814110212,0.14216157,84.51,84.451,0.59460457]
[1772814110394,0.57415323,84.505,84.451,0.59460457]
[1772814110594,41.40639787,84.528,84.453,0.59460457]
[1772814110796,11.83113972,84.523,84.46,0.73676614]
[1772814111119,11.83113972,84.523,84.464,0.59460457]
[1772814111120,0.57415323,84.523,84.464,0.59460457]
[1772814111317,0.57415323,84.532,84.473,0.14216157]
[1772814111497,0.57415323,84.532,84.474,0.59460457]
[1772814113121,11.82997953,84.531,84.479,0.59460457]
[1772814113294,12.40413276,84.531,84.48,0.59460457]
[1772814113499,0.57415323,84.53,84.48,0.59460457]
[1772814114915,0.14216157,84.527,84.48,0.59460457]
[1772814115118,0.57415323,84.524,84.482,0.59460457]
[1772814116023,0.58667056,84.522,84.481,11.83698109]
[1772814116521,0.58667056,84.514,84.481,11.83698109]
[1772814117205,0.58667056,84.514,84.471,30.17269924]
[1772814117206,0.58667056,84.512,84.472,11.83824225]
[1772814118107,9.44915778,84.53,84.474,0.57700689]
[1772814118108,11.83137205,84.522,84.474,0.57700689]
[1772814118306,0.58667056,84.521,84.474,0.57700689]
[1772814119118,0.14216157,84.527,84.476,0.86133003]
[1772814119305,0.58667056,84.524,84.477,0.57700689]
[1772814121621,0.623563,84.522,84.479,0.86462574]
[1772814121826,0.623563,84.522,84.48,0.5803026]
[1772814122617,0.76572457,84.519,84.469,11.8386627]
[1772814122927,0.76572457,84.509,84.469,11.8386627]
[1772814123132,0.76572457,84.509,84.454,0.5803026]
[1772814123331,0.76572457,84.499,84.446,29.6045443]
[1772814123633,0.46633861,84.496,84.468,0.82005798]
[1772814123812,0.14216157,84.495,84.468,0.82005798]
[1772814124011,0.46633861,84.496,84.469,11.8386627]
[1772814124329,0.60850018,84.495,84.468,0.82005798]
[1772814124631,0.46633861,84.494,84.468,0.82005798]
[1772814124831,0.46798015,84.488,84.449,11.84146644]
[1772814125130,0.46798015,84.484,84.449,11.84146644]
[1772814125632,0.14216157,84.497,84.452,0.5803026]
[1772814126135,41.41668737,84.507,84.453,0.5803026]
[1772814126136,0.14216157,84.505,84.453,0.5803026]
[1772814126434,0.14216157,84.495,84.453,0.5803026]
[1772814126729,0.14216157,84.504,84.453,0.5803026]
[1772814126934,11.83333925,84.507,84.453,0.5803026]
[1772814127122,0.14216157,84.506,84.453,0.5803026]
[1772814127308,11.83333925,84.507,84.453,0.5803026]
[1772814127512,0.14216157,84.506,84.453,0.5803026]